[Event "Dvaro taure"]
[Site "Taujenai, Lithuania"]
[Date "2021.11.28"]
[Round "9.10"]
[White "Bagdanskis, Dangis"]
[Black "Cmilis, Viktoras"]
[Result "1-0"]
[WhiteElo "1861"]
[BlackElo "1621"]
[PlyCount "95"]
[EventDate "2021.??.??"]
[TimeControl "10+5"]
[WhiteClock "0:05:29"]
[BlackClock "0:02:50"]

1. d4 {[%emt 0:00:07]} d5 {[%emt 0:00:02]} 2. Nf3 {[%emt 0:00:01]} Nf6 {[%emt
0:00:02]} 3. Bg5 {[%emt 0:00:02]} Ne4 {[%emt 0:00:04]} 4. Bh4 {[%emt 0:00:02]}
c6 {[%emt 0:00:17]} 5. c3 {[%emt 0:00:03]} Qb6 {[%emt 0:00:05]} 6. Qb3 {[%emt
0:00:04]} e6 {[%emt 0:00:06]} 7. Nbd2 {[%emt 0:00:03]} Nd7 {[%emt 0:00:31]} 8.
Nxe4 {[%emt 0:00:07]} dxe4 {[%emt 0:00:03]} 9. Nd2 {[%emt 0:00:02]} Qxb3 {
[%emt 0:00:13]} 10. axb3 {[%emt 0:00:05]} f5 {[%emt 0:00:04]} 11. e3 {[%emt 0:
00:07]} a6 {[%emt 0:00:04]} 12. Bc4 {[%emt 0:00:04]} Nb6 {[%emt 0:00:11]} 13.
b4 {[%emt 0:00:12]} Bd7 {[%emt 0:00:12]} 14. O-O {[%emt 0:00:14]} h6 {[%emt 0:
00:07]} 15. f3 {[%emt 0:00:15]} g5 {[%emt 0:00:08]} 16. Bg3 {[%emt 0:00:02]}
exf3 {[%emt 0:00:41]} 17. gxf3 {[%emt 0:00:02]} Ke7 {[%emt 0:00:11]} 18. Be5 {
[%emt 0:00:05]} Rh7 {[%emt 0:00:04]} 19. e4 {[%emt 0:00:20]} Bg7 {[%emt 0:00:
35]} 20. Bc7 {[%emt 0:00:02]} Nc8 {[%emt 0:00:22]} 21. Rae1 {[%emt 0:00:20]} f4
{[%emt 0:00:12]} 22. e5 {[%emt 0:00:13]} b6 {[%emt 0:00:28]} 23. Bd3 {[%emt 0:
00:02]} Rh8 {[%emt 0:00:05]} 24. Nc4 {[%emt 0:00:27]} b5 {[%emt 0:01:24]} 25.
Nd2 {[%emt 0:00:37]} Ra7 {[%emt 0:00:08]} 26. Ba5 {[%emt 0:00:03]} Be8 {[%emt
0:00:24]} 27. Be4 {[%emt 0:00:14]} h5 {[%emt 0:00:23]} 28. Kf2 {[%emt 0:00:26]}
Kd7 {[%emt 0:00:44]} 29. Rg1 {[%emt 0:00:06]} Bh6 {[%emt 0:00:04]} 30. Nb3 {
[%emt 0:00:02]} Ne7 {[%emt 0:00:17]} 31. Nc5+ {[%emt 0:00:02]} Kc8 {[%emt 0:00:
06]} 32. Bb6 {[%emt 0:00:22]} Ra8 {[%emt 0:00:07]} 33. Nxe6 {[%emt 0:00:02]}
Nd5 {[%emt 0:00:07]} 34. Bxd5 {[%emt 0:00:34]} cxd5 {[%emt 0:00:03]} 35. Nxg5 {
[%emt 0:00:04]} Kb7 {[%emt 0:00:11]} 36. Bc5 {[%emt 0:00:05]} Kc6 {[%emt 0:00:
31]} 37. e6 {[%emt 0:00:23]} Bxg5 {[%emt 0:00:26]} 38. Rxg5 {[%emt 0:00:02]}
Rh6 {[%emt 0:00:08]} 39. Rf5 {[%emt 0:01:09]} Bg6 {[%emt 0:00:16]} 40. Rxf4 {
[%emt 0:00:03]} Bd3 {[%emt 0:00:03]} 41. Bf8 {[%emt 0:00:17]} Rg6 {[%emt 0:00:
09]} 42. e7 {[%emt 0:00:02]} Re8 {[%emt 0:00:05]} 43. Re5 {[%emt 0:00:14]} Bc4
{[%emt 0:00:21]} 44. Rxh5 {[%emt 0:00:17]} Kd7 {[%emt 0:00:07]} 45. Rhf5 {
[%emt 0:00:04]} Rg8 {[%emt 0:00:13]} 46. h4 {[%emt 0:00:10]} Rg6 {[%emt 0:00:
07]} 47. Rf6 {[%emt 0:00:03]} Rxf6 {[%emt 0:00:10]} 48. Rxf6 {[%emt 0:00:01]}
1-0

[Event "Dvaro taure"]
[Site "Taujenai, Lithuania"]
[Date "2021.11.28"]
[Round "9.11"]
[White "Tilvikas, Justas"]
[Black "Zaura, Vidmantas"]
[Result "1-0"]
[WhiteElo "1849"]
[BlackElo "1971"]
[PlyCount "71"]
[EventDate "2021.??.??"]
[TimeControl "10+5"]
[WhiteClock "0:01:25"]
[BlackClock "0:01:13"]

1. d4 {[%emt 0:00:02]} Nf6 {[%emt 0:00:02]} 2. c4 {[%emt 0:00:00]} e5 {[%emt 0:
00:02]} 3. dxe5 {[%emt 0:00:01]} Ng4 {[%emt 0:00:01]} 4. Bf4 {[%emt 0:00:00]}
Nc6 {[%emt 0:00:08]} 5. Nf3 {[%emt 0:00:05]} Bb4+ {[%emt 0:00:02]} 6. Nbd2 {
[%emt 0:00:07]} Qe7 {[%emt 0:00:03]} 7. e3 {[%emt 0:00:08]} Ngxe5 {[%emt 0:00:
08]} 8. Nxe5 {[%emt 0:00:04]} Nxe5 {[%emt 0:00:04]} 9. Be2 {[%emt 0:00:04]} d6
{[%emt 0:00:14]} 10. O-O {[%emt 0:00:07]} O-O {[%emt 0:00:23]} 11. a3 {[%emt 0:
00:04]} Bxd2 {[%emt 0:00:05]} 12. Qxd2 {[%emt 0:00:02]} Be6 {[%emt 0:00:11]}
13. c5 {[%emt 0:00:28]} Rfd8 {[%emt 0:01:14]} 14. Qc3 {[%emt 0:01:33]} Ng6 {
[%emt 0:01:05]} 15. cxd6 {[%emt 0:01:18]} cxd6 {[%emt 0:00:04]} 16. Bg3 {[%emt
0:00:03]} Rac8 {[%emt 0:00:05]} 17. Qb4 {[%emt 0:00:01]} d5 {[%emt 0:00:18]}
18. Qxe7 {[%emt 0:00:35]} Nxe7 {[%emt 0:00:02]} 19. Be5 {[%emt 0:00:28]} f6 {
[%emt 0:00:08]} 20. Bc3 {[%emt 0:00:02]} Bf5 {[%emt 0:00:32]} 21. Rac1 {[%emt
0:00:35]} Nc6 {[%emt 0:00:14]} 22. Rfd1 {[%emt 0:00:05]} Kf7 {[%emt 0:00:04]}
23. h3 {[%emt 0:00:00]} Ke6 {[%emt 0:00:14]} 24. Bb5 {[%emt 0:00:09]} a6 {
[%emt 0:00:58]} 25. Ba4 {[%emt 0:00:03]} Ne5 {[%emt 0:00:04]} 26. Rd4 {[%emt 0:
03:10]} Nd3 {[%emt 0:00:51]} 27. Rf1 {[%emt 0:00:39]} Nc5 {[%emt 0:00:12]} 28.
Bd1 {[%emt 0:00:06]} Ne4 {[%emt 0:01:07]} 29. Ba5 {[%emt 0:00:13]} Rd7 {[%emt
0:00:10]} 30. g4 {[%emt 0:00:14]} Bg6 {[%emt 0:00:05]} 31. Bb3 {[%emt 0:00:11]}
Rc5 {[%emt 0:01:03]} 32. Bb4 {[%emt 0:00:06]} Rb5 {[%emt 0:00:02]} 33. f4 {
[%emt 0:00:24]} f5 {[%emt 0:00:37]} 34. Rfd1 {[%emt 0:00:17]} a5 {[%emt 0:00:
32]} 35. Ba4 {[%emt 0:00:02]} Nd6 {[%emt 0:00:42]} 36. Bxd6 {[%emt 0:00:11]}
1-0

[Event "Dvaro taure"]
[Site "Taujenai, Lithuania"]
[Date "2021.11.28"]
[Round "9.12"]
[White "Muralis, Aloyzas"]
[Black "Griksaite, Ieva"]
[Result "1/2-1/2"]
[WhiteElo "1748"]
[BlackElo "1518"]
[PlyCount "106"]
[EventDate "2021.??.??"]
[TimeControl "10+5"]
[WhiteClock "0:03:52"]
[BlackClock "0:06:16"]

1. e4 {[%emt 0:00:02]} c5 {[%emt 0:00:02]} 2. c4 {[%emt 0:00:02]} Nc6 {[%emt 0:
00:09]} 3. Nc3 {[%emt 0:00:02]} g6 {[%emt 0:00:02]} 4. d3 {[%emt 0:00:01]} Bg7
{[%emt 0:00:02]} 5. f4 {[%emt 0:00:01]} e5 {[%emt 0:00:12]} 6. Nf3 {[%emt 0:00:
03]} d6 {[%emt 0:00:01]} 7. Be3 {[%emt 0:00:10]} Nd4 {[%emt 0:00:04]} 8. fxe5 {
[%emt 0:00:10]} dxe5 {[%emt 0:00:04]} 9. Be2 {[%emt 0:00:13]} Ne7 {[%emt 0:00:
03]} 10. Qd2 {[%emt 0:00:04]} Bg4 {[%emt 0:00:14]} 11. h3 {[%emt 0:01:16]} Bxf3
{[%emt 0:00:18]} 12. Bxf3 {[%emt 0:00:02]} Nxf3+ {[%emt 0:00:10]} 13. gxf3 {
[%emt 0:00:02]} b6 {[%emt 0:00:01]} 14. h4 {[%emt 0:00:18]} Nc6 {[%emt 0:00:02]
} 15. O-O-O {[%emt 0:00:06]} Nd4 {[%emt 0:00:02]} 16. Qg2 {[%emt 0:00:07]} Qf6
{[%emt 0:00:07]} 17. Rdf1 {[%emt 0:00:13]} O-O-O {[%emt 0:00:10]} 18. Bg5 {
[%emt 0:00:13]} Qe6 {[%emt 0:00:07]} 19. Bxd8 {[%emt 0:00:04]} Rxd8 {[%emt 0:
00:03]} 20. h5 {[%emt 0:00:29]} Nc6 {[%emt 0:00:10]} 21. Nd5 {[%emt 0:00:04]}
Nb4 {[%emt 0:00:03]} 22. Nxb4 {[%emt 0:00:19]} cxb4 {[%emt 0:00:08]} 23. Rd1 {
[%emt 0:00:02]} Bh6+ {[%emt 0:00:03]} 24. Kc2 {[%emt 0:00:18]} Qc6 {[%emt 0:00:
16]} 25. hxg6 {[%emt 0:00:05]} Qa4+ {[%emt 0:00:10]} 26. Kb1 {[%emt 0:00:02]}
hxg6 {[%emt 0:01:57]} 27. Qc2 {[%emt 0:00:03]} Qxc2+ {[%emt 0:00:16]} 28. Kxc2
{[%emt 0:00:03]} Bf4 {[%emt 0:00:04]} 29. Rh7 {[%emt 0:00:14]} Rd7 {[%emt 0:00:
01]} 30. Rdh1 {[%emt 0:00:11]} a5 {[%emt 0:00:04]} 31. Rg7 {[%emt 0:00:13]} a4
{[%emt 0:00:08]} 32. b3 {[%emt 0:00:12]} axb3+ {[%emt 0:00:04]} 33. axb3 {
[%emt 0:00:03]} b5 {[%emt 0:00:16]} 34. Ra1 {[%emt 0:00:40]} Kb7 {[%emt 0:00:
03]} 35. Rh7 {[%emt 0:00:34]} bxc4 {[%emt 0:00:09]} 36. bxc4 {[%emt 0:00:03]}
b3+ {[%emt 0:00:06]} 37. Kc3 {[%emt 0:00:11]} b2 {[%emt 0:00:03]} 38. Rb1 {
[%emt 0:00:07]} Bc1 {[%emt 0:00:02]} 39. Rh1 {[%emt 0:00:05]} Kc6 {[%emt 0:00:
01]} 40. Rbxc1 {[%emt 0:01:02]} bxc1=Q+ {[%emt 0:00:05]} 41. Rxc1 {[%emt 0:00:
02]} Ra7 {[%emt 0:00:13]} 42. Kd2 {[%emt 0:00:09]} Kc5 {[%emt 0:00:03]} 43. Ke3
{[%emt 0:00:02]} Rb7 {[%emt 0:00:30]} 44. Rf1 {[%emt 0:00:08]} f5 {[%emt 0:00:
12]} 45. exf5 {[%emt 0:00:51]} gxf5 {[%emt 0:00:02]} 46. Rh1 {[%emt 0:00:06]}
Rb2 {[%emt 0:00:10]} 47. Re1 {[%emt 0:00:22]} Ra2 {[%emt 0:00:05]} 48. f4 {
[%emt 0:00:22]} exf4+ {[%emt 0:00:08]} 49. Kxf4 {[%emt 0:00:01]} Kd4 {[%emt 0:
00:00]} 50. Kxf5 {[%emt 0:00:10]} Kxd3 {[%emt 0:00:05]} 51. c5 {[%emt 0:00:05]}
Rc2 {[%emt 0:00:13]} 52. Rd1+ {[%emt 0:00:15]} Kc4 {[%emt 0:00:03]} 53. Rd8 {
[%emt 0:00:20]} Rf2+ {[%emt 0:00:02]} 1/2-1/2

[Event "Dvaro taure"]
[Site "Taujenai, Lithuania"]
[Date "2021.11.28"]
[Round "9.13"]
[White "Mulevicius, Andrius"]
[Black "Zalimas, Ugnius"]
[Result "1-0"]
[WhiteElo "1698"]
[BlackElo "1392"]
[PlyCount "61"]
[EventDate "2021.??.??"]
[TimeControl "10+5"]
[WhiteClock "0:00:36"]
[BlackClock "0:01:02"]

1. e4 {[%emt 0:00:23]} c5 {[%emt 0:00:10]} 2. Nc3 {[%emt 0:00:04]} d6 {[%emt 0:
00:01]} 3. g3 {[%emt 0:00:01]} Nf6 {[%emt 0:00:02]} 4. Bg2 {[%emt 0:00:02]} g6
{[%emt 0:00:02]} 5. d3 {[%emt 0:00:01]} Bg7 {[%emt 0:00:01]} 6. h3 {[%emt 0:00:
06]} O-O {[%emt 0:00:02]} 7. Be3 {[%emt 0:00:00]} Nc6 {[%emt 0:00:00]} 8. Qd2 {
[%emt 0:00:01]} Bd7 {[%emt 0:00:01]} 9. Bh6 {[%emt 0:00:08]} a6 {[%emt 0:00:01]
} 10. h4 {[%emt 0:00:14]} Ng4 {[%emt 0:01:14]} 11. Bxg7 {[%emt 0:00:12]} Kxg7 {
[%emt 0:00:01]} 12. h5 {[%emt 0:00:01]} Qb6 {[%emt 0:01:14]} 13. f3 {[%emt 0:
00:28]} Nf6 {[%emt 0:00:44]} 14. hxg6 {[%emt 0:00:05]} fxg6 {[%emt 0:00:00]}
15. Qh6+ {[%emt 0:01:24]} Kf7 {[%emt 0:00:02]} 16. O-O-O {[%emt 0:00:12]} Rh8 {
[%emt 0:00:24]} 17. Nh3 {[%emt 0:00:23]} Bxh3 {[%emt 0:00:10]} 18. Bxh3 {[%emt
0:00:41]} Nd4 {[%emt 0:00:03]} 19. Qe3 {[%emt 0:01:30]} Qa5 {[%emt 0:00:31]}
20. e5 {[%emt 0:00:44]} dxe5 {[%emt 0:00:23]} 21. Qxe5 {[%emt 0:00:05]} Rad8 {
[%emt 0:02:52]} 22. Kb1 {[%emt 0:02:03]} Rd6 {[%emt 0:01:30]} 23. Rde1 {[%emt
0:00:49]} Re8 {[%emt 0:00:03]} 24. Rhf1 {[%emt 0:00:52]} Rb6 {[%emt 0:00:05]}
25. Nd5 {[%emt 0:01:02]} Nxd5 {[%emt 0:00:02]} 26. Qxd5+ {[%emt 0:00:02]} e6 {
[%emt 0:00:28]} 27. Qc4 {[%emt 0:00:27]} Nxf3 {[%emt 0:00:52]} 28. Rxf3+ {
[%emt 0:00:38]} Kg7 {[%emt 0:00:52]} 29. Ref1 {[%emt 0:00:10]} Re7 {[%emt 0:00:
09]} 30. Qf4 {[%emt 0:00:31]} Qa3 {[%emt 0:00:22]} 31. Qf8# {[%emt 0:00:04]}
1-0

[Event "Dvaro taure"]
[Site "Taujenai, Lithuania"]
[Date "2021.11.28"]
[Round "9.14"]
[White "Breikss, Peteris"]
[Black "Kurmis, Edvinas"]
[Result "0-1"]
[WhiteElo "1622"]
[BlackElo "1665"]
[PlyCount "43"]
[EventDate "2021.??.??"]
[TimeControl "10+5"]
[BlackClock "0:02:13"]

1. e4 {[%emt 0:07:38]} e5 {[%emt 0:00:04]} 2. Nf3 {[%emt 0:00:03]} Nf6 {[%emt
0:00:02]} 3. Nxe5 {[%emt 0:00:07]} Nc6 {[%emt 0:00:02]} 4. Nxc6 {[%emt 0:00:06]
} dxc6 {[%emt 0:00:02]} 5. d3 {[%emt 0:00:17]} Bc5 {[%emt 0:00:03]} 6. Be2 {
[%emt 0:00:12]} h5 {[%emt 0:00:10]} 7. Nd2 {[%emt 0:00:37]} Ng4 {[%emt 0:00:32]
} 8. Bxg4 {[%emt 0:00:09]} hxg4 {[%emt 0:00:27]} 9. Nf1 {[%emt 0:00:17]} Qf6 {
[%emt 0:00:48]} 10. Qe2 {[%emt 0:00:29]} Be6 {[%emt 0:00:56]} 11. c3 {[%emt 0:
00:08]} O-O-O {[%emt 0:00:24]} 12. Be3 {[%emt 0:00:20]} Be7 {[%emt 0:00:49]}
13. Nd2 {[%emt 0:03:28]} Kb8 {[%emt 0:00:54]} 14. Nb3 {[%emt 0:00:18]} Rh5 {
[%emt 0:01:30]} 15. Nd4 {[%emt 0:01:21]} Bc8 {[%emt 0:00:23]} 16. f4 {[%emt 0:
00:30]} gxf3 {[%emt 0:00:26]} 17. Nxf3 {[%emt 0:00:14]} Bg4 {[%emt 0:00:29]}
18. O-O-O {[%emt 0:00:13]} Ra5 {[%emt 0:00:33]} 19. Kb1 {[%emt 0:00:13]} Qe6 {
[%emt 0:00:31]} 20. b3 {[%emt 0:00:37]} Qf6 {[%emt 0:00:19]} 21. d4 {[%emt 0:
00:12]} Qg6 {[%emt 0:00:22]} 22. Qc2 {[%emt 0:00:21]} 0-1

[Event "Dvaro taure"]
[Site "Taujenai, Lithuania"]
[Date "2021.11.28"]
[Round "9.15"]
[White "Vainermanas, Berelis"]
[Black "Spevak, Dovydas"]
[Result "1/2-1/2"]
[WhiteElo "1663"]
[BlackElo "1523"]
[PlyCount "21"]
[EventDate "2021.??.??"]
[TimeControl "10+5"]
[WhiteClock "0:09:19"]
[BlackClock "0:07:32"]

1. d4 {[%emt 0:15:28]} d5 {[%emt 0:00:02]} 2. c4 {[%emt 0:00:02]} e6 {[%emt 0:
00:08]} 3. Nc3 {[%emt 0:00:04]} c6 {[%emt 0:00:14]} 4. cxd5 {[%emt 0:00:14]}
exd5 {[%emt 0:00:22]} 5. Nf3 {[%emt 0:00:17]} Bd6 {[%emt 0:00:34]} 6. Bg5 {
[%emt 0:00:09]} Nf6 {[%emt 0:00:12]} 7. e3 {[%emt 0:00:05]} Nbd7 {[%emt 0:00:
47]} 8. Bd3 {[%emt 0:00:10]} h6 {[%emt 0:00:07]} 9. Bh4 {[%emt 0:00:02]} O-O {
[%emt 0:00:12]} 10. O-O {[%emt 0:00:29]} Qe8 {[%emt 0:00:48]} 11. Bg3 {[%emt 0:
00:05]} 1/2-1/2

[Event "Dvaro taure"]
[Site "Taujenai, Lithuania"]
[Date "2021.11.28"]
[Round "9.17"]
[White "Bubnys, Marius"]
[Black "Andrusevics, Jegors"]
[Result "0-1"]
[WhiteElo "1490"]
[BlackElo "1586"]
[PlyCount "113"]
[EventDate "2021.??.??"]
[TimeControl "10+5"]
[WhiteClock "0:00:14"]
[BlackClock "0:03:56"]

1. c4 {[%emt 0:26:30]} e5 {[%emt 0:00:05]} 2. Nc3 {[%emt 0:00:00]} b6 {[%emt 0:
00:09]} 3. Nf3 {[%emt 0:00:03]} d6 {[%emt 0:00:05]} 4. g3 {[%emt 0:00:01]} Bb7
5. Bg2 {[%emt 0:00:01]} Nf6 {[%emt 0:00:04]} 6. O-O {[%emt 0:00:05]} Be7 {
[%emt 0:00:04]} 7. d3 {[%emt 0:00:02]} Nbd7 {[%emt 0:00:03]} 8. e4 {[%emt 0:00:
01]} O-O {[%emt 0:00:07]} 9. b4 {[%emt 0:00:01]} a5 {[%emt 0:00:29]} 10. bxa5 {
[%emt 0:00:26]} Rxa5 {[%emt 0:00:12]} 11. Bd2 {[%emt 0:00:04]} Ra8 {[%emt 0:00:
12]} 12. Nd5 {[%emt 0:00:11]} Nc5 {[%emt 0:00:06]} 13. Be3 {[%emt 0:00:17]}
Nxd5 {[%emt 0:00:08]} 14. cxd5 {[%emt 0:00:02]} f5 {[%emt 0:00:05]} 15. Bxc5 {
[%emt 0:00:09]} bxc5 {[%emt 0:00:07]} 16. Nd2 {[%emt 0:00:29]} Ba6 {[%emt 0:00:
44]} 17. Nc4 {[%emt 0:00:05]} f4 {[%emt 0:00:11]} 18. Qg4 {[%emt 0:00:30]} Rf6
{[%emt 0:00:31]} 19. h4 {[%emt 0:01:21]} Bc8 {[%emt 0:00:10]} 20. Qd1 {[%emt 0:
00:25]} fxg3 {[%emt 0:00:15]} 21. fxg3 {[%emt 0:00:04]} Rg6 {[%emt 0:00:08]}
22. Qf3 {[%emt 0:00:38]} Bg4 {[%emt 0:00:27]} 23. Qf2 {[%emt 0:01:45]} Qd7 {
[%emt 0:00:28]} 24. Ne3 {[%emt 0:00:08]} Bh3 {[%emt 0:00:27]} 25. Qf7+ {[%emt
0:00:57]} Kh8 {[%emt 0:00:04]} 26. Nf5 {[%emt 0:00:24]} Bxf5 {[%emt 0:00:12]}
27. Rxf5 {[%emt 0:00:03]} Qe8 {[%emt 0:01:05]} 28. Qxe8+ {[%emt 0:00:12]} Rxe8
{[%emt 0:00:03]} 29. Kh2 {[%emt 0:00:26]} Rf6 {[%emt 0:00:09]} 30. Bh3 {[%emt
0:00:16]} Rxf5 {[%emt 0:00:26]} 31. Bxf5 {[%emt 0:00:01]} g6 {[%emt 0:00:14]}
32. Bd7 {[%emt 0:00:02]} Ra8 {[%emt 0:00:04]} 33. Bc6 {[%emt 0:00:01]} Ra3 {
[%emt 0:00:02]} 34. Kh3 {[%emt 0:00:48]} Kg7 {[%emt 0:00:25]} 35. Kg4 {[%emt 0:
00:19]} h5+ {[%emt 0:00:02]} 36. Kh3 {[%emt 0:00:09]} Kf7 {[%emt 0:00:27]} 37.
Kg2 {[%emt 0:00:01]} Bf6 {[%emt 0:00:06]} 38. Kf2 {[%emt 0:00:05]} Ke7 {[%emt
0:00:04]} 39. Ke2 {[%emt 0:00:03]} g5 {[%emt 0:00:04]} 40. Kd2 {[%emt 0:00:57]}
gxh4 {[%emt 0:00:14]} 41. gxh4 {[%emt 0:00:01]} Bxh4 {[%emt 0:00:07]} 42. Rh1 {
[%emt 0:00:20]} Bg5+ {[%emt 0:00:03]} 43. Kc2 {[%emt 0:00:11]} Rxa2+ {[%emt 0:
00:25]} 44. Kb3 {[%emt 0:00:04]} Rd2 {[%emt 0:00:25]} 45. Kc3 {[%emt 0:00:02]}
h4 {[%emt 0:00:24]} 46. Ba4 {[%emt 0:00:23]} Rg2 {[%emt 0:00:10]} 47. Bd1 {
[%emt 0:00:06]} Rg3 {[%emt 0:00:06]} 48. Bh5 {[%emt 0:00:21]} h3 {[%emt 0:00:
11]} 49. Bd1 {[%emt 0:00:18]} Bf4 {[%emt 0:00:03]} 50. Bh5 {[%emt 0:00:13]} Re3
{[%emt 0:00:07]} 51. Bg4 {[%emt 0:00:04]} h2 {[%emt 0:00:01]} 52. Bh5 {[%emt 0:
00:08]} Rh3 {[%emt 0:00:13]} 53. Bg4 {[%emt 0:00:02]} Rh4 {[%emt 0:00:01]} 54.
Bf5 {[%emt 0:00:02]} Rh5 {[%emt 0:00:05]} 55. Bg4 {[%emt 0:00:01]} Rg5 {[%emt
0:00:00]} 56. Bf5 {[%emt 0:00:03]} Rg1 {[%emt 0:00:06]} 57. d4 {[%emt 0:00:29]}
0-1

[Event "Dvaro taure"]
[Site "Taujenai, Lithuania"]
[Date "2021.11.28"]
[Round "9.18"]
[White "Andrijauskas, Domas"]
[Black "Griksaite, Egle"]
[Result "1/2-1/2"]
[WhiteElo "1441"]
[BlackElo "1508"]
[PlyCount "107"]
[EventDate "2021.??.??"]
[TimeControl "10+5"]
[WhiteClock "0:00:12"]
[BlackClock "0:02:50"]

1. c4 {[%emt 0:00:04]} c5 {[%emt 0:00:03]} 2. Nc3 {[%emt 0:00:04]} Nc6 {[%emt
0:00:02]} 3. g3 {[%emt 0:00:00]} g6 {[%emt 0:00:07]} 4. Bg2 {[%emt 0:00:01]}
Bg7 {[%emt 0:00:06]} 5. e3 {[%emt 0:00:11]} e6 {[%emt 0:00:38]} 6. Nge2 {[%emt
0:00:05]} Nge7 {[%emt 0:00:07]} 7. O-O {[%emt 0:00:02]} O-O {[%emt 0:00:04]} 8.
d4 {[%emt 0:00:27]} cxd4 {[%emt 0:01:13]} 9. Nxd4 {[%emt 0:00:18]} Rb8 {[%emt
0:01:24]} 10. Rb1 {[%emt 0:01:41]} b6 {[%emt 0:00:02]} 11. Ncb5 {[%emt 0:02:36]
} d5 {[%emt 0:01:26]} 12. Nxc6 {[%emt 0:00:32]} Nxc6 {[%emt 0:00:12]} 13. cxd5
{[%emt 0:00:12]} exd5 {[%emt 0:00:57]} 14. Qxd5 {[%emt 0:00:34]} Qxd5 {[%emt 0:
00:57]} 15. Bxd5 {[%emt 0:00:04]} Nb4 {[%emt 0:00:05]} 16. Rd1 {[%emt 0:03:07]}
Rd8 {[%emt 0:01:24]} 17. Bxf7+ {[%emt 0:00:28]} Kxf7 {[%emt 0:00:01]} 18. Rxd8
{[%emt 0:00:02]} Nc6 {[%emt 0:00:27]} 19. Rd6 {[%emt 0:00:17]} Nb4 {[%emt 0:00:
07]} 20. a3 {[%emt 0:00:31]} Bf5 {[%emt 0:00:03]} 21. Ra1 {[%emt 0:00:21]} Nc2
{[%emt 0:00:03]} 22. Ra2 {[%emt 0:00:16]} Be6 {[%emt 0:00:02]} 23. b3 {[%emt 0:
00:09]} Bxb3 {[%emt 0:00:07]} 24. Rb2 {[%emt 0:00:02]} Bxb2 {[%emt 0:00:04]}
25. Bxb2 {[%emt 0:00:01]} Rb7 {[%emt 0:00:29]} 26. Rf6+ {[%emt 0:00:04]} Ke7 {
[%emt 0:00:02]} 27. Rf4 {[%emt 0:00:12]} a6 {[%emt 0:00:03]} 28. Nd4 {[%emt 0:
00:01]} Nxd4 {[%emt 0:00:02]} 29. Rxd4 {[%emt 0:00:05]} b5 {[%emt 0:00:05]} 30.
Bc3 {[%emt 0:00:07]} Bc4 {[%emt 0:00:02]} 31. Bb4+ {[%emt 0:00:02]} Kf7 {[%emt
0:00:01]} 32. Rd6 {[%emt 0:00:07]} Ra7 {[%emt 0:00:05]} 33. Bc5 {[%emt 0:00:08]
} Ra8 {[%emt 0:00:05]} 34. Rd7+ {[%emt 0:00:05]} Kf6 {[%emt 0:00:01]} 35. Rxh7
{[%emt 0:00:04]} a5 {[%emt 0:00:01]} 36. Ra7 {[%emt 0:00:06]} Rxa7 {[%emt 0:00:
03]} 37. Bxa7 {[%emt 0:00:01]} b4 {[%emt 0:00:01]} 38. axb4 {[%emt 0:00:03]}
axb4 {[%emt 0:00:01]} 39. Kg2 {[%emt 0:00:06]} b3 {[%emt 0:00:01]} 40. Kf3 {
[%emt 0:00:07]} Kf5 {[%emt 0:00:01]} 41. Bd4 {[%emt 0:00:01]} g5 {[%emt 0:00:
03]} 42. Bb2 {[%emt 0:00:04]} g4+ {[%emt 0:00:04]} 43. Kg2 {[%emt 0:00:02]}
Bd5+ {[%emt 0:00:01]} 44. Kf1 {[%emt 0:00:01]} Ke4 {[%emt 0:00:02]} 45. Ke2 {
[%emt 0:00:14]} Bc4+ {[%emt 0:00:03]} 46. Ke1 {[%emt 0:00:08]} Kf3 {[%emt 0:00:
03]} 47. Bc3 {[%emt 0:00:06]} Ke4 {[%emt 0:00:04]} 48. Bb2 {[%emt 0:00:06]} Kf3
{[%emt 0:00:03]} 49. Ba1 {[%emt 0:00:04]} Ke4 {[%emt 0:00:02]} 50. Kd2 {[%emt
0:00:02]} Kf3 {[%emt 0:00:01]} 51. Ke1 {[%emt 0:00:09]} Ke4 {[%emt 0:00:06]}
52. Bb2 {[%emt 0:00:05]} Kf3 {[%emt 0:00:02]} 53. Ba1 {[%emt 0:00:07]} Ke4 {
[%emt 0:00:03]} 54. Bb2 {[%emt 0:00:02]} 1/2-1/2

[Event "Dvaro taure"]
[Site "Taujenai, Lithuania"]
[Date "2021.11.28"]
[Round "9.19"]
[White "Matulaitis, Mantas"]
[Black "Aleidzans, Vadims"]
[Result "1-0"]
[WhiteElo "1176"]
[BlackElo "1563"]
[PlyCount "73"]
[EventDate "2021.??.??"]
[TimeControl "10+5"]
[WhiteClock "0:01:03"]
[BlackClock "0:03:19"]

1. b3 {[%emt 0:00:01]} e6 {[%emt 0:00:11]} 2. Bb2 {[%emt 0:00:01]} Nf6 {[%emt
0:00:02]} 3. e3 {[%emt 0:00:02]} d5 {[%emt 0:00:02]} 4. Bb5+ {[%emt 0:00:02]}
c6 {[%emt 0:00:04]} 5. Be2 {[%emt 0:00:04]} Be7 {[%emt 0:00:03]} 6. f4 {[%emt
0:00:02]} b6 {[%emt 0:00:25]} 7. d3 {[%emt 0:00:01]} Bb7 {[%emt 0:00:02]} 8.
Nf3 {[%emt 0:00:01]} c5 {[%emt 0:00:02]} 9. O-O {[%emt 0:00:22]} Nc6 {[%emt 0:
00:03]} 10. Nbd2 {[%emt 0:00:48]} Ng4 {[%emt 0:00:20]} 11. Ng5 {[%emt 0:01:21]}
Nxe3 {[%emt 0:00:19]} 12. Qe1 {[%emt 0:00:00]} Nxf1 {[%emt 0:00:12]} 13. Qxf1 {
[%emt 0:00:03]} Bxg5 {[%emt 0:00:05]} 14. fxg5 {[%emt 0:00:01]} Qxg5 {[%emt 0:
00:03]} 15. Nf3 {[%emt 0:00:01]} Qe3+ {[%emt 0:00:10]} 16. Kh1 {[%emt 0:00:05]}
Qh6 {[%emt 0:00:37]} 17. Qf2 {[%emt 0:00:17]} O-O-O {[%emt 0:00:12]} 18. a4 {
[%emt 0:00:29]} Rhe8 {[%emt 0:00:33]} 19. a5 {[%emt 0:00:02]} e5 {[%emt 0:00:
31]} 20. axb6 {[%emt 0:01:30]} axb6 {[%emt 0:00:03]} 21. c4 {[%emt 0:02:48]} d4
{[%emt 0:00:11]} 22. Bc1 {[%emt 0:00:14]} Qd6 {[%emt 0:00:23]} 23. Nd2 {[%emt
0:00:47]} Re6 {[%emt 0:00:58]} 24. Ne4 {[%emt 0:00:15]} Qe7 {[%emt 0:01:46]}
25. Bg4 {[%emt 0:00:15]} Rf8 {[%emt 0:00:16]} 26. Bxe6+ {[%emt 0:00:24]} fxe6 {
[%emt 0:00:14]} 27. Qe2 {[%emt 0:00:02]} Nb4 {[%emt 0:00:41]} 28. Bg5 {[%emt 0:
00:40]} Qf7 {[%emt 0:00:30]} 29. Nd6+ {[%emt 0:00:02]} Kd7 {[%emt 0:00:14]} 30.
Nxf7 {[%emt 0:00:02]} Rxf7 {[%emt 0:00:02]} 31. h3 {[%emt 0:00:24]} h6 {[%emt
0:00:07]} 32. Bh4 {[%emt 0:00:06]} g5 {[%emt 0:00:01]} 33. Bg3 {[%emt 0:00:00]}
Nc6 {[%emt 0:00:03]} 34. Rf1 {[%emt 0:00:14]} Re7 {[%emt 0:00:11]} 35. Bxe5 {
[%emt 0:00:13]} Re8 {[%emt 0:00:01]} 36. Rf7+ {[%emt 0:00:22]} Ne7 {[%emt 0:00:
02]} 37. Bf6 {[%emt 0:00:09]} 1-0